fUST/lending_fUST_20250709
["ID","MTS","AMOUNT","RATE_DAILY","PERIOD"]
[370399092,1751997044333,-151.0,0.00025149,7]
[370399093,1751997044345,-2895.30014474,0.00025149,2]
[370399094,1751997044358,-1346.36,0.00025153,6]
[370399095,1751997044369,-1852.93819925,0.00025176,12]
[370399096,1751997044381,-198.8591042,0.0002518,60]
[370399097,1751997044392,-374.024622,0.00025188,7]
[370399098,1751997044403,-374.024622,0.00025188,7]
[370399099,1751997044416,-163.032429,0.00025188,7]
[370399100,1751997044429,-163.032429,0.00025188,7]
[370399101,1751997044441,-231.28369723,0.0002519,2]
[370399102,1751997044453,-2895.30014474,0.00025193,2]
[370399103,1751997044464,-151.0,0.00025205,7]
[370399104,1751997044475,-151.0,0.00025205,7]
[370399105,1751997044485,-160.922161,0.00025205,7]
[370399106,1751997044496,-160.922161,0.00025205,7]
[370399107,1751997044507,-151.0,0.00025205,7]
[370399108,1751997044518,-151.0,0.00025205,7]
[370399109,1751997044528,-204.305689,0.00025205,7]
[370399110,1751997044539,-204.305689,0.00025205,7]
[370399111,1751997044550,-151.0,0.00025205,7]
[370399112,1751997044561,-151.0,0.00025205,7]
[370399113,1751997044572,-160.442316,0.00025205,7]
[370399114,1751997044583,-160.442316,0.00025205,7]
[370399115,1751997044594,-151.0,0.00025205,7]
[370399116,1751997044605,-151.0,0.00025205,7]
[370399117,1751997044616,-485.02,0.00025205,2]
[370399118,1751997044626,-664.0,0.00025205,2]
[370399119,1751997044637,-1098.59,0.00025205,2]
[370399120,1751997044648,-803.89,0.00025205,2]
[370399121,1751997044659,-720.41,0.00025205,2]
[370399122,1751997044670,-659.45,0.00025205,2]
[370399123,1751997044681,-922.67,0.00025205,2]
[370399124,1751997044691,-587.69,0.00025205,2]
[370399125,1751997044702,-460.0,0.00025205,2]
[370399126,1751997044712,-1096.64,0.00025205,2]
[370399127,1751997044723,-151.0,0.00025205,7]
[370399128,1751997044734,-585.36,0.00025205,2]
[370399129,1751997044744,-170.544995,0.00025205,7]
[370399130,1751997044757,-151.0,0.00025212,7]
[370399131,1751997044767,-403.584055,0.00025212,7]
[370399132,1751997044778,-403.584055,0.00025212,7]
[370399133,1751997044788,-1938.975,0.00025225,2]
[370399134,1751997044799,-407.0,0.00025225,2]
[370399135,1751997044809,-1346.36,0.00025253,7]
[370399136,1751997044820,-151.0,0.0002527,7]
[370399137,1751997044830,-151.0,0.00025292,7]
[370399138,1751997044841,-151.0,0.00025292,7]
[370399139,1751997044851,-151.0,0.00025292,7]
[370399140,1751997044861,-151.0,0.00025292,7]
[370399141,1751997044872,-151.0,0.00025292,7]
[370399142,1751997044883,-151.0,0.00025292,7]
[370399143,1751997044894,-151.0,0.00025292,7]
[370399144,1751997044905,-151.0,0.00025292,7]
[370399145,1751997044916,-151.0,0.00025292,7]
[370399146,1751997044926,-151.0,0.00025292,7]
[370399147,1751997044937,-151.0,0.00025292,7]
[370399148,1751997044947,-151.0,0.00025292,7]
[370399149,1751997044957,-151.0,0.00025292,7]
[370399150,1751997044967,-186.74238,0.00025292,7]
[370399151,1751997044978,-224.292336,0.00025292,7]
[370399152,1751997044989,-224.292336,0.00025292,7]
[370399153,1751997045000,-224.292336,0.00025292,7]
[370399154,1751997045012,-224.292336,0.00025292,7]
[370399155,1751997045023,-224.292336,0.00025292,7]
[370399156,1751997045034,-224.292336,0.00025292,7]
[370399157,1751997045045,-224.292336,0.00025292,7]
[370399158,1751997045056,-224.292336,0.00025292,7]
[370399159,1751997045245,-224.292336,0.00025292,7]
[370399160,1751997045261,-224.292336,0.00025292,7]
[370399161,1751997045271,-224.292336,0.00025292,7]
[370399162,1751997045280,-224.292344,0.00025292,7]
[370399163,1751997045292,-151.0,0.00025292,7]
[370399164,1751997045301,-151.0,0.00025292,7]
[370399165,1751997045313,-151.0,0.00025292,7]
[370399166,1751997045322,-151.0,0.00025292,7]
[370399167,1751997045343,-151.0,0.00025292,7]
[370399168,1751997045353,-151.0,0.00025292,7]
[370399169,1751997045363,-284.659474,0.00025292,7]
[370399170,1751997045372,-314.423501,0.00025292,7]
[370399171,1751997045383,-314.423501,0.00025292,7]
[370399172,1751997045392,-314.423501,0.00025292,7]
[370399173,1751997045402,-314.423501,0.00025292,7]
[370399174,1751997045412,-314.423501,0.00025292,7]
[370399175,1751997045421,-314.423501,0.00025292,7]
[370399176,1751997045430,-314.423501,0.00025292,7]
[370399177,1751997045440,-314.423501,0.00025292,7]
[370399178,1751997045449,-314.423501,0.00025292,7]
[370399179,1751997045459,-314.423501,0.00025292,7]
[370399180,1751997045470,-314.423501,0.00025292,7]
[370399181,1751997045479,-314.423494,0.00025292,7]
[370399182,1751997045489,-151.0,0.00025292,7]
[370399183,1751997045498,-151.0,0.00025292,7]
[370399184,1751997045508,-151.0,0.00025292,7]
[370399185,1751997045517,-260.022303,0.00025292,7]
[370399186,1751997045527,-260.022303,0.00025292,7]
[370399187,1751997045536,-260.022303,0.00025292,7]
[370399188,1751997045546,-260.022303,0.00025292,7]
[370399189,1751997045555,-260.022303,0.00025292,7]
[370399190,1751997045565,-260.022303,0.00025292,7]
[370399191,1751997045574,-151.0,0.00025292,7]
[370399192,1751997045583,-151.0,0.00025292,7]
[370399193,1751997045593,-260.022303,0.00025292,7]
[370399194,1751997045602,-260.022303,0.00025292,7]
[370399195,1751997045612,-260.022303,0.00025292,7]
[370399196,1751997045621,-260.022303,0.00025292,7]
[370399197,1751997045632,-260.022303,0.00025292,7]
[370399198,1751997045642,-260.0223,0.00025292,7]
[370399200,1751997045652,-151.0,0.00025292,7]
[370399201,1751997045662,-151.0,0.00025292,7]
[370399202,1751997045671,-151.0,0.00025292,7]
[370399203,1751997045681,-277.958668,0.00025292,7]
[370399204,1751997045690,-151.0,0.00025292,7]
[370399205,1751997045700,-151.0,0.00025292,7]
[370399206,1751997045709,-151.0,0.00025292,7]
[370399207,1751997045720,-151.0,0.00025292,7]
[370399208,1751997045729,-151.0,0.00025292,7]
[370399209,1751997045740,-151.0,0.00025292,7]
[370399210,1751997045749,-196.957404,0.00025292,7]
[370399211,1751997045759,-160.915915,0.00025292,7]
[370399212,1751997045769,-160.915915,0.00025292,7]
[370399213,1751997045778,-160.915915,0.00025292,7]
[370399214,1751997045788,-160.915915,0.00025292,7]
[370399215,1751997045798,-160.915915,0.00025292,7]
[370399216,1751997045808,-160.915915,0.00025292,7]
[370399217,1751997045817,-160.915915,0.00025292,7]
[370399218,1751997045827,-160.915915,0.00025292,7]
[370399219,1751997045836,-160.915915,0.00025292,7]
[370399220,1751997045846,-160.915915,0.00025292,7]
[370399221,1751997045856,-160.915915,0.00025292,7]
[370399222,1751997045865,-160.915911,0.00025292,7]
[370399223,1751997045875,-196.573232,0.00025292,7]
[370399224,1751997045885,-151.0,0.00025292,7]
[370399225,1751997045895,-151.0,0.00025292,7]
[370399226,1751997045905,-151.0,0.00025292,7]
[370399228,1751997045914,-151.0,0.00025292,7]
[370399230,1751997045924,-274.879875,0.00025292,7]
[370399232,1751997045934,-1925509.68365935,0.00025293,20]
[370399237,1751997046153,-460.0,0.00019178,2]
[370399238,1751997046164,-170.544995,0.00023561,7]
[370399239,1751997046174,-134.455005,0.00024164,7]
[370399240,1751997046186,-92.544995,0.00024164,7]
[370399241,1751997046195,-215.2437778,0.00025,30]
[370399242,1751997046204,-215.2437778,0.00025,7]
[370399243,1751997046214,-20561.06526917,0.00025293,20]
[370399244,1751997046226,-8119.93682137,0.00025293,20]
[370399245,1751997046238,-15846.83361807,0.00025293,20]
[370399246,1751997046249,-4004.59195489,0.00025293,20]
[370399247,1751997046261,-379.2939947,0.00025293,20]
[370399248,1751997046307,-170.544995,0.000247,7]
[370399249,1751997046318,-170.544995,0.000249,7]
[370399250,1751997046327,-170.544995,0.00025205,7]
[370399251,1751997046339,-350.7390398,0.00025293,20]
[370399252,1751997046354,-3070.89393041,0.00025293,20]
[370399253,1751997046430,-501.688308,0.00018766,2]
[370399254,1751997046439,-998.311692,0.00025293,20]
[370399255,1751997046485,-6186.38,0.0002489,10]
[370399256,1751997046496,-4128.82952083,0.00025293,20]
[370399257,1751997046509,-1485.21455135,0.00025293,20]
[370399258,1751997046520,-490.66197027,0.00025293,20]
[370399259,1751997092990,200.0,0.00026669,120]
[370399262,1751997211101,200.0,0.00026447,120]
[370399264,1751997373935,209.21734556,0.00026137,120]
[370399265,1751997390769,200.0,0.00025819,120]
[370399266,1751997510814,200.0,0.00026772,120]
[370399267,1751997570778,200.0,0.00026449,120]
[370399268,1751997589884,172.9670106,0.00017807,2]
[370399269,1751997597459,214.1136,0.00027397,120]
[370399270,1751997749895,24900.0,0.00017641,2]
[370399271,1751997786061,360.1203979,0.00017641,2]
[370399272,1751997810820,200.0,0.0002572,120]
[370399273,1751997931461,200.0,0.00024683,120]
[370399274,1751997940186,393.314939,0.00017641,2]
[370399275,1751997990537,200.0,0.00025565,120]
[370399277,1751998020587,420.613883,0.00013699,2]
[370399311,1751998232384,-1200.0,0.00018257,2]
[370399313,1751998232394,-300.0,0.00018257,2]
[370399315,1751998232403,-300.0,0.00018257,2]
[370399317,1751998232413,-300.0,0.00018257,2]
[370399319,1751998232424,-300.0,0.00018258,2]
[370399321,1751998232435,-1200.0,0.00018258,2]
[370399323,1751998232445,-10000.0,0.00018259,2]
[370399325,1751998232456,-500.0,0.00018665,2]
[370399328,1751998232466,-420.06253375,0.00018665,2]
[370399330,1751998232476,-242.15518566,0.00018665,2]
[370399332,1751998232485,-500.0,0.00018665,2]
[370399333,1751998232496,-495.38449093,0.00018665,2]
[370399335,1751998232505,-231.24398303,0.00018665,2]
[370399337,1751998232514,-540.52621714,0.00018665,2]
[370399339,1751998232526,-500.0,0.00018665,2]
[370399341,1751998232535,-16144.30631076,0.00018665,2]
[370399343,1751998232544,-500.0,0.00018666,2]
[370399345,1751998232554,-500.0,0.00018666,2]
[370399347,1751998232563,-500.0,0.00018666,2]
[370399349,1751998232572,-500.0,0.00018666,2]
[370399351,1751998232582,-500.0,0.00018666,2]
[370399353,1751998232591,-500.0,0.00018666,2]
[370399355,1751998232600,-500.0,0.00018666,2]
[370399357,1751998232609,-500.0,0.00018666,2]
[370399359,1751998232619,-500.0,0.00018666,2]
[370399361,1751998232630,-500.0,0.00018666,2]
[370399363,1751998232640,-500.0,0.00018666,2]
[370399364,1751998232649,-500.0,0.00018666,2]
[370399365,1751998232658,-500.0,0.00018666,2]
[370399366,1751998232667,-500.0,0.00018666,2]
[370399367,1751998232676,-500.0,0.00018666,2]
[370399368,1751998232685,-322.0731441,0.00018666,2]
[370399369,1751998232697,-296.78875618,0.00018666,2]
[370399370,1751998232708,-618.86190028,0.00018666,2]
[370399371,1751998232718,-618.86190028,0.00018666,2]
[370399372,1751998232728,-618.86190028,0.00018666,2]
[370399373,1751998232736,-377.91305488,0.00018666,2]
[370399422,1751998238197,-240.9488454,0.00018666,2]
[370399423,1751998238207,-618.86190028,0.00018666,2]
[370399424,1751998238217,-618.86190028,0.00018666,2]
[370399425,1751998238226,-618.86190028,0.00018666,2]
[370399426,1751998238235,-618.86190028,0.00018666,2]
[370399427,1751998238244,-618.86190028,0.00018666,2]
[370399428,1751998238254,-618.86190028,0.00018666,2]
[370399429,1751998238264,-618.86190028,0.00018666,2]
[370399430,1751998238273,-618.86190028,0.00018666,2]
[370399431,1751998238284,-612.6732813,0.00018666,2]
[370399432,1751998238294,-612.6732813,0.00018666,2]
[370399433,1751998238303,-5025.0178564,0.00018667,2]
[370399438,1751998238416,-13249.03833532,0.00018667,2]
[370399439,1751998238428,-5333.37075141,0.00018667,2]
[370399440,1751998238439,-10937.4068957,0.00018667,2]
[370399659,1751998243440,-10720.46503568,0.00018667,2]
[370399661,1751998243452,-1000.0,0.00018667,2]
[370399664,1751998243463,-6432.60733158,0.00018667,2]
[370399693,1751998246296,-342.62083877,0.00018667,2]
[370399694,1751998246308,-1520.93930107,0.00018667,2]
[370399695,1751998246374,-24945.44013321,0.00018667,2]
[370399705,1751998408307,274.8,0.00025262,120]
[370399734,1751998621014,160.5852,0.00027397,120]
[370399740,1751998802417,24900.0,0.00017568,2]
[370399747,1751999066639,155.98770955,0.00018151,2]
[370399748,1751999210116,511.801489,0.00013699,2]
[370399756,1751999254654,10332.8365839,0.00017817,2]
[370399758,1751999267807,196.65747,0.00017675,2]
[370399761,1751999321904,89514.97049577,0.00016209,2]
[370399765,1751999333977,154.53492655,0.000168,2]
[370399805,1751999432557,-211.32980603,0.00018463,2]
[370399807,1751999432566,-771.65343793,0.00018563,2]
[370399809,1751999432578,-402.67135502,0.00018563,2]
[370399814,1751999432612,-25.67520705,0.00018563,2]
[370399816,1751999432622,-300.0,0.00018566,2]
[370399818,1751999432631,-300.0,0.00018566,2]
[370399820,1751999432640,-300.0,0.00018566,2]
[370399821,1751999432649,-300.0,0.00018566,2]
[370399823,1751999432658,-1200.0,0.00018566,2]
[370399825,1751999432667,-249.54547184,0.00018566,2]
[370399827,1751999432676,-382.49004842,0.00018566,2]
[370399829,1751999432686,-799.82382933,0.00018567,2]
[370399831,1751999432695,-1664.68149876,0.00018567,2]
[370399833,1751999432704,-20093.26243429,0.00018567,2]
[370399880,1751999437664,-41412.84206326,0.00018567,2]
[370399881,1751999437676,-1788.17467686,0.00018567,2]
[370399909,1751999438481,-1806.41131233,0.00018567,2]
[370399911,1751999438493,-1297.88913375,0.00018567,2]
[370399916,1751999438535,-730.9799992,0.00018567,2]
[370399924,1751999438594,-3184.2600008,0.00018567,2]
[370399926,1751999438606,-1516.852922,0.00018567,2]
[370399928,1751999438618,-52150.44711552,0.00018567,2]
[370399930,1751999438631,-534.94906441,0.00018567,2]
[370399933,1751999438642,-708.43795877,0.00018567,2]
[370399935,1751999438654,-1024.49773799,0.00018567,2]
[370399937,1751999438666,-1249.0500665,0.00018567,2]
[370399939,1751999438677,-813.62704925,0.00018567,2]
[370399942,1751999438689,-275.32868555,0.00018567,2]
[370399977,1751999440836,-311.41389999,0.00018567,2]
[370400000,1751999443648,-721.06662817,0.00018567,2]
[370400001,1751999443704,-14424.60319629,0.00018567,2]
[370400004,1751999446784,-207.19908243,0.00018566,2]
[370400005,1751999446794,-1330.96037894,0.00018567,2]
[370400014,1751999491917,1085.94804913,0.00027397,120]
[370400015,1751999512307,-185.35742956,0.00018174,2]
[370400016,1751999517437,-204.95116927,0.00018174,2]
[370400017,1751999519678,-169.57101679,0.00018174,2]
[370400018,1751999521774,-316.35821065,0.00018174,2]
[370400019,1751999525713,-158.72936752,0.00018174,2]
[370400020,1751999527840,-161.91364474,0.00018174,2]
[370400021,1751999530046,-219.53189939,0.00018174,2]
[370400022,1751999532510,-615.01007625,0.00018174,2]
[370400023,1751999535065,-157.17563894,0.00018174,2]
[370400024,1751999538227,-202.6422152,0.00018174,2]
[370400025,1751999626881,160.5852,0.00027397,120]
[370400027,1751999700146,25000.0,0.00018,2]
[370400028,1751999886184,24900.0,0.00018066,2]
[370400030,1751999986646,390.2837986,0.00018062,2]
[370400031,1752000118734,826.9930064,0.00017934,2]
[370400037,1752000206379,539.671513,0.00013699,2]
[370400040,1752000252985,1641.1142154,0.0001806,2]
[370400041,1752000297388,196.65747,0.00017905,2]
[370400042,1752000421681,401.91441087,0.00017628,2]
[370400043,1752000422503,200.95720543,0.00018004,2]
[370400044,1752000475607,3265.56480452,0.0002739,120]
[370400047,1752000605312,9627.4413185,0.00017959,2]
[370400078,1752000632052,-1200.0,0.00018559,2]
[370400079,1752000632062,-300.0,0.0001856,2]
[370400080,1752000632071,-300.0,0.0001856,2]
[370400081,1752000632080,-300.0,0.0001856,2]
[370400082,1752000632089,-31.34,0.0001856,2]
[370400083,1752000632101,-268.66,0.0001856,2]
[370400084,1752000632110,-1200.0,0.00018561,2]
[370400085,1752000632119,-295.64489064,0.00018666,2]
[370400086,1752000632129,-1181.39698301,0.00018666,2]
[370400087,1752000632138,-702.44953901,0.00018666,2]
[370400088,1752000632147,-1264.40917021,0.00018666,2]
[370400089,1752000632156,-2247.83852482,0.00018666,2]
[370400090,1752000632166,-3512.24769503,0.00018666,2]
[370400091,1752000632176,-1126.19212164,0.00018667,2]
[370400092,1752000632186,-615.15353517,0.000189,2]
[370400093,1752000632194,-1200.95632416,0.00018978,2]
[370400094,1752000632203,-366.29062281,0.00019,2]
[370400095,1752000632212,-293.66,0.00019068,3]
[370400096,1752000632221,-881.0,0.00019068,3]
[370400097,1752000632231,-500.0,0.00019077,2]
[370400098,1752000632240,-500.0,0.00019077,2]
[370400099,1752000632253,-500.0,0.00019077,2]
[370400100,1752000632262,-500.0,0.00019077,2]
[370400101,1752000632271,-500.0,0.00019077,2]
[370400102,1752000632281,-500.0,0.00019077,2]
[370400103,1752000632290,-500.0,0.00019077,2]
[370400104,1752000632299,-500.0,0.00019077,2]
[370400105,1752000632308,-500.0,0.00019077,2]
[370400106,1752000632317,-500.0,0.00019077,2]
[370400107,1752000632327,-500.0,0.00019077,2]
[370400108,1752000632336,-500.0,0.00019077,2]
[370400109,1752000632345,-330.64337331,0.00019077,2]
[370400110,1752000632354,-500.0,0.00019077,2]
[370400111,1752000632364,-500.0,0.00019077,2]
[370400112,1752000632377,-500.0,0.00019077,2]
[370400113,1752000632387,-500.0,0.00019077,2]
[370400114,1752000632396,-500.0,0.00019077,2]
[370400115,1752000632406,-448.68323863,0.00019077,2]
[370400116,1752000632415,-500.0,0.00019077,2]
[370400117,1752000632426,-500.0,0.00019077,2]
[370400118,1752000632436,-500.0,0.00019077,2]
[370400119,1752000632446,-500.0,0.00019077,2]
[370400120,1752000632457,-500.0,0.00019077,2]
[370400121,1752000632467,-500.0,0.00019077,2]
[370400122,1752000632476,-25446.22758615,0.00019078,2]
[370400232,1752000638200,-421.47200358,0.00018666,2]
[370400234,1752000638213,-4636.16467726,0.00018666,2]
[370400236,1752000638222,-6884.00548225,0.00018666,2]
[370400238,1752000638232,-3745.38747012,0.00018666,2]
[370400240,1752000638243,-5245.96662914,0.00018666,2]
[370400242,1752000638253,-11379.68253188,0.00018666,2]
[370400244,1752000638263,-87009.34683896,0.00019078,2]
[370400247,1752000638275,-1000.0,0.00019078,2]
[370400423,1752000640075,-308.12220275,0.00019078,2]
[370400437,1752000640217,-0.00323254,0.00019078,2]
[370400675,1752000642904,-8000.31545567,0.00019078,2]
[370404938,1752000890562,160.5852,0.00027397,120]
[370404939,1752000908940,24900.0,0.00018077,2]
[370404941,1752001065480,5000.0,0.00018151,2]
[370404942,1752001170173,5000.0,0.00018151,2]
[370404943,1752001272871,512.687937,0.00013699,2]
[370404946,1752001447096,153.43694546,0.00018,2]
[370404947,1752001453513,166.0,0.0001796,2]
[370404949,1752001757388,2358.0484765,0.00017923,2]
[370404985,1752001832184,-172.83194427,0.00018354,2]
[370404987,1752001832193,-288.05324045,0.00018399,2]
[370404989,1752001832204,-160.76576435,0.00018506,2]
[370404991,1752001832214,-19.3961872,0.00018696,2]
[370405002,1752001832342,-170.8668728,0.00018696,2]
[370405004,1752001832352,-137.5211272,0.00018878,2]
[370405007,1752001832367,-1756.97966685,0.00018878,2]
[370405009,1752001832376,-410.10235678,0.000189,2]
[370405012,1752001832385,-1.74618553,0.00018922,2]
[370405015,1752001838036,-953.72747168,0.00018922,2]
[370405016,1752001838047,-290.75999998,0.00018922,2]
[370405017,1752001838195,-1461.68387209,0.00018922,2]
[370405018,1752001838204,-207.4,0.00018967,2]
[370405019,1752001838213,-690.642,0.00018967,2]
[370405020,1752001838222,-300.0,0.00018967,2]
[370405021,1752001838231,-1200.0,0.00018967,2]
[370405022,1752001838240,-402.03,0.00018968,3]
[370405023,1752001838249,-201.01,0.00018968,3]
[370405024,1752001838259,-603.06,0.00018968,3]
[370405025,1752001838268,-500.0,0.00018977,2]
[370405026,1752001838277,-500.0,0.00018977,2]
[370405027,1752001838286,-500.0,0.00018977,2]
[370405028,1752001838295,-500.0,0.00018977,2]
[370405029,1752001838306,-500.0,0.00018977,2]
[370405030,1752001838315,-500.0,0.00018977,2]
[370405031,1752001838324,-495.69240336,0.00018977,2]
[370405032,1752001838333,-500.0,0.00018977,2]
[370405033,1752001838342,-500.0,0.00018977,2]
[370405034,1752001838351,-479.35211532,0.00018977,2]
[370405035,1752001838361,-500.0,0.00018977,2]
[370405036,1752001838370,-521.44014361,0.00018977,2]
[370405037,1752001838379,-500.0,0.00018977,2]
[370405038,1752001838388,-500.0,0.00018977,2]
[370405039,1752001838398,-369.31765905,0.00018977,2]
[370405040,1752001838411,-500.0,0.00018977,2]
[370405041,1752001838420,-500.0,0.00018977,2]
[370405042,1752001838429,-500.0,0.00018977,2]
[370405043,1752001838438,-500.0,0.00018977,2]
[370405044,1752001838447,-500.0,0.00018977,2]
[370405045,1752001838456,-500.0,0.00018977,2]
[370405046,1752001838466,-500.0,0.00018977,2]
[370405047,1752001838475,-500.0,0.00018977,2]
[370405048,1752001838484,-500.0,0.00018977,2]
[370405049,1752001838493,-500.0,0.00018977,2]
[370405050,1752001838502,-596.0103407,0.00018977,2]
[370405051,1752001838513,-596.0103407,0.00018977,2]
[370405052,1752001838522,-596.0103407,0.00018977,2]
[370405053,1752001838531,-596.0103407,0.00018977,2]
[370405054,1752001838540,-596.0103407,0.00018977,2]
[370405055,1752001838550,-596.0103407,0.00018977,2]
[370405056,1752001838560,-596.0103407,0.00018977,2]
[370405057,1752001838569,-596.0103407,0.00018977,2]
[370405058,1752001838579,-596.0103407,0.00018977,2]
[370405059,1752001838588,-596.0103407,0.00018977,2]
[370405060,1752001838598,-596.0103407,0.00018977,2]
[370405061,1752001838607,-596.0103407,0.00018977,2]
[370405062,1752001838616,-596.0103407,0.00018977,2]
[370405063,1752001838626,-596.0103407,0.00018977,2]
[370405064,1752001838636,-71.1502712,0.00018978,2]
[370405134,1752001840438,-738.6676937,0.00018978,2]
[370405135,1752001840449,-409.157496,0.00018978,2]
[370405164,1752001843162,-915.60908035,0.00018978,2]
[370405166,1752001843174,-981.323186,0.00018978,2]
[370405169,1752001843186,-1558.29016145,0.00018978,2]
[370405171,1752001843198,-13714.76123672,0.00018978,2]
[370405173,1752001843209,-1624.19018579,0.00018978,2]
[370405175,1752001843220,-403.42643461,0.00018978,2]
[370405201,1752001846156,-43263.46680826,0.00018978,2]
[370405203,1752001846167,-2617.59902758,0.00018978,2]
[370405205,1752001846179,-10610.02,0.00018978,2]
[370405210,1752001846209,-327.15,0.00018978,2]
[370405216,1752001846264,-2742.93961449,0.00018978,2]
[370405219,1752001846275,-23475.26590875,0.00018978,2]
[370405698,1752001983650,24900.0,0.00017988,2]
[370405704,1752002125404,160.5852,0.00027397,120]
[370405705,1752002381319,28770.52558073,0.00018,2]
[370405707,1752002394586,537.840633,0.00013699,2]
[370405715,1752002839884,169.620828,0.00017854,2]
[370405716,1752002874673,1378.09452524,0.00017662,2]
[370405717,1752002877022,5506.86572285,0.00017662,2]
[370405725,1752002929402,1400.48882942,0.00025315,120]
[370405732,1752002990698,24900.0,0.00017867,2]
[370405736,1752003003124,5682.0,0.00016801,2]
[370405782,1752003032405,-935.0,0.00018591,2]
[370405785,1752003032415,-1200.0,0.00018799,2]
[370405786,1752003032425,-2491.59680709,0.000188,2]
[370405793,1752003032461,-2182.0306983,0.000188,2]
[370405795,1752003032470,-300.0,0.00018865,2]
[370405797,1752003032480,-500.0,0.00018866,2]
[370405799,1752003032490,-611.52969542,0.00018866,2]
[370405802,1752003032499,-500.0,0.00018866,2]
[370405805,1752003032507,-500.0,0.00018866,2]
[370405808,1752003032517,-500.0,0.00018866,2]
[370405810,1752003032525,-500.0,0.00018866,2]
[370405812,1752003032536,-390.74475938,0.00018866,2]
[370405814,1752003032545,-500.0,0.00018866,2]
[370405815,1752003032555,-557.04786409,0.00018866,2]
[370405816,1752003032564,-14099.14141693,0.00018867,2]
[370405817,1752003032577,-1085.54040766,0.00018867,2]
[370405818,1752003032588,-975.42,0.00018867,2]
[370405819,1752003032600,-6041.31112233,0.00018867,2]
[370405820,1752003032609,-690.642,0.00018867,2]
[370405822,1752003032618,-207.4,0.00018867,2]
[370405824,1752003032628,-151.0,0.00018867,2]
[370405826,1752003032637,-151.0,0.00018867,2]
[370405828,1752003032647,-151.0,0.00018867,2]
[370405830,1752003032656,-151.0,0.00018867,2]
[370405832,1752003032666,-151.0,0.00018867,2]
[370405834,1752003032675,-151.0,0.00018867,2]
[370405835,1752003032685,-151.0,0.00018867,2]
[370405836,1752003032694,-151.0,0.00018867,2]
[370405837,1752003032703,-151.0,0.00018867,2]
[370405839,1752003032712,-151.0,0.00018867,2]
[370405840,1752003032722,-500.0,0.00018867,2]
[370405842,1752003032731,-151.0,0.00018867,2]
[370405844,1752003032741,-500.0,0.00018867,2]
[370405846,1752003032750,-151.0,0.00018867,2]
[370405848,1752003032759,-500.0,0.00018867,2]
[370405850,1752003032768,-151.0,0.00018867,2]
[370405852,1752003032777,-500.0,0.00018867,2]
[370405854,1752003032786,-500.0,0.00018867,2]
[370405856,1752003032795,-500.0,0.00018867,2]
[370405858,1752003032804,-300.0,0.00018867,2]
[370405860,1752003032813,-151.0,0.00018867,2]
[370405862,1752003032822,-50000.0,0.00018867,2]
[370405864,1752003032832,-201.01,0.00018868,3]
[370405866,1752003032841,-603.05,0.00018868,3]
[370405868,1752003032850,-500.0,0.00018877,2]
[370405870,1752003032859,-500.0,0.00018877,2]
[370405872,1752003032868,-365.00810053,0.00018877,2]
[370405874,1752003032877,-500.0,0.00018877,2]
[370405876,1752003032886,-500.0,0.00018877,2]
[370405878,1752003032904,-500.0,0.00018877,2]
[370405881,1752003032916,-500.0,0.00018877,2]
[370405883,1752003032926,-500.0,0.00018877,2]
[370405885,1752003032936,-500.0,0.00018877,2]
[370405887,1752003032946,-500.0,0.00018877,2]
[370405889,1752003032955,-500.0,0.00018877,2]
[370405891,1752003032966,-500.0,0.00018877,2]